bitfinex/quotes_BTCUSD_20251224
["timestamp","ask_amount","ask_price","bid_price","bid_amount"]
[1766603888904,0.06864636,87405.0,87397.0,0.01148]
[1766603889451,0.01144046,87409.0,87405.0,0.000549]
[1766603889675,0.0114406,87408.0,87405.0,0.000549]
[1766603889843,0.0114406,87408.0,87398.0,0.19889]
[1766603890046,0.01144073,87407.0,87398.0,0.19889]
[1766603890248,0.0686439,87408.0,87398.0,0.19889]
[1766603890672,0.01144086,87406.0,87398.0,0.19889]
[1766603890862,0.06864456,87407.0,87398.0,0.19889]
[1766603891903,0.01144046,87409.0,87398.0,0.19889]
[1766603891904,0.2288097,87409.0,87398.0,0.19889]
[1766603892045,0.06864752,87403.0,87398.0,0.19889]
[1766603892251,0.01089238,87402.0,87398.0,0.19889]
[1766603892449,0.37392566,87423.0,87397.0,0.01148]
[1766603892450,0.03434783,87430.0,87401.0,0.0823973]
[1766603892647,0.03076282,87432.0,87407.0,0.03225]
[1766603892648,0.06863426,87420.0,87407.0,0.03225]
[1766603893007,0.01143876,87422.0,87409.0,0.03225]
[1766603893173,0.0114385,87424.0,87409.0,0.03225]
[1766603893372,0.01143889,87421.0,87409.0,0.03225]
[1766603893578,0.19168,87425.0,87409.0,0.03225]
[1766603893579,0.01144007,87412.0,87409.0,0.03225]
[1766603893776,0.0571965,87418.0,87409.0,0.03225]
[1766603893978,0.06863653,87417.0,87409.0,0.03225]
[1766603894180,0.06863576,87418.0,87409.0,0.03225]
[1766603894396,0.01143929,87418.0,87409.0,0.03225]
[1766603894606,0.06863496,87419.0,87409.0,0.03225]
[1766603894772,0.0686358,87418.0,87409.0,0.03225]
[1766603894972,0.01143942,87417.0,87409.0,0.03225]
[1766603895444,0.01143929,87418.0,87409.0,0.03225]
[1766603895788,0.01143942,87417.0,87409.0,0.03225]
[1766603896121,0.01143929,87418.0,87409.0,0.03225]
[1766603896490,0.01143942,87417.0,87408.0,0.01148]
[1766603896707,0.01143981,87414.0,87408.0,0.01148]
[1766603896914,0.06863792,87416.0,87408.0,0.01148]
[1766603897157,0.06863678,87417.0,87408.0,0.01148]
[1766603897632,0.01143955,87416.0,87408.0,0.01148]
[1766603897847,0.01143981,87414.0,87408.0,0.01148]
[1766603898064,0.06863817,87415.0,87408.0,0.01148]
[1766603898272,0.01143942,87417.0,87408.0,0.01148]
[1766603898422,0.01143955,87416.0,87408.0,0.01148]
[1766603898621,0.01143955,87416.0,87409.0,0.01148]
[1766603898822,0.06863743,87416.0,87409.0,0.01148]
[1766603899067,0.06863704,87417.0,87409.0,0.01148]
[1766603899427,0.01143929,87418.0,87409.0,0.01148]
[1766603899640,0.01143968,87415.0,87409.0,0.01148]
[1766603899890,0.06863737,87416.0,87409.0,0.01148]
[1766603900092,0.0686378,87417.0,87409.0,0.01148]
[1766603900258,0.01143942,87417.0,87410.0,0.01148]
[1766603900611,0.01143942,87417.0,87402.0,0.09383868]
[1766603900612,0.19168,87408.0,87394.0,0.00011]
[1766603900815,0.19168,87408.0,87401.0,0.0823973]
[1766603900973,0.05720294,87409.0,87402.0,0.01148]
[1766603901173,0.06864253,87410.0,87402.0,0.01148]
[1766603901374,0.01144046,87409.0,87402.0,0.01148]
[1766603901576,0.06864366,87408.0,87402.0,0.01148]
[1766603902195,0.01144073,87407.0,87402.0,0.01148]
[1766603902421,0.0114402,87411.0,87407.0,0.00055]
[1766603902624,0.057203,87408.0,87407.0,0.01203]
[1766603902940,0.05720241,87409.0,87407.0,0.01148]
[1766603903437,0.057203,87408.0,87407.0,0.01148]
[1766603903640,0.01144033,87410.0,87407.0,0.01148]
[1766603903843,0.06864137,87411.0,87407.0,0.01148]
[1766603904543,0.11674218,87443.0,87411.0,0.00055]
[1766603904544,0.01143902,87420.0,87411.0,0.00055]
[1766603904718,0.01143863,87423.0,87415.0,0.0823973]
[1766603904929,0.00035389,87423.0,87415.0,0.0823973]
[1766603905134,0.0571977,87417.0,87415.0,0.0823973]
[1766603905343,0.01143889,87421.0,87412.0,0.01148]
[1766603905627,0.05719776,87417.0,87412.0,0.01148]
[1766603905834,0.01143902,87420.0,87412.0,0.01148]
[1766603906057,0.06863272,87422.0,87412.0,0.01148]
[1766603906281,0.06863268,87422.0,87412.0,0.01148]
[1766603906634,0.01143876,87422.0,87412.0,0.01148]
[1766603907028,0.06898632,87423.0,87412.0,0.01148]
[1766603907230,0.01143876,87422.0,87412.0,0.01148]
[1766603907566,0.01143889,87421.0,87412.0,0.01148]
[1766603907758,0.01143876,87422.0,87412.0,0.01148]
[1766603907962,0.00035389,87423.0,87412.0,0.01148]
[1766603908337,0.00035389,87423.0,87414.0,0.0823973]
[1766603909332,0.01179252,87423.0,87414.0,0.0823973]
[1766603909538,0.00035389,87423.0,87414.0,0.0823973]
[1766603910340,0.01143876,87422.0,87414.0,0.0823973]
[1766603910540,0.01143929,87418.0,87412.0,0.01148]
[1766603910775,0.12742916,87419.0,87412.0,0.01148]
[1766603911179,0.184625,87419.0,87412.0,0.01148]
[1766603911382,0.01143916,87419.0,87412.0,0.01148]
[1766603911583,0.06863542,87420.0,87412.0,0.01148]
[1766603911931,0.01143889,87421.0,87412.0,0.01148]
[1766603912101,0.06863355,87421.0,87412.0,0.01148]
[1766603912400,0.01143902,87420.0,87412.0,0.01148]
[1766603912584,0.06863355,87421.0,87412.0,0.01148]
[1766603912747,0.01143902,87420.0,87412.0,0.01148]
[1766603913500,0.06863355,87421.0,87412.0,0.01148]
[1766603913717,0.01143889,87421.0,87412.0,0.01148]
[1766603913908,0.05719644,87419.0,87412.0,0.01148]
[1766603914681,0.0571965,87418.0,87412.0,0.01148]
[1766603914796,0.05719644,87419.0,87412.0,0.01148]
[1766603915413,0.05719521,87420.0,87412.0,0.01148]
[1766603915893,0.01143902,87420.0,87412.0,0.01148]
[1766603916105,0.00035389,87423.0,87412.0,0.01148]
[1766603916533,0.22875764,87429.0,87412.0,0.01148]
[1766603916534,0.01143719,87434.0,87423.0,0.000353]
[1766603916752,0.01143759,87431.0,87424.0,0.01148]
[1766603916973,0.01143745,87432.0,87424.0,0.01148]
[1766603917584,0.01143759,87431.0,87424.0,0.01148]
[1766603917787,0.0686249,87432.0,87424.0,0.01148]
[1766603918440,0.01143759,87431.0,87424.0,0.01148]
[1766603918813,0.01143772,87430.0,87424.0,0.01148]
[1766603919255,0.06862559,87431.0,87424.0,0.01148]
[1766603919427,0.01143772,87430.0,87424.0,0.01148]
[1766603919631,0.06862638,87430.0,87424.0,0.01148]
[1766603919825,0.01143745,87432.0,87424.0,0.01148]
[1766603920026,0.05719187,87425.0,87424.0,0.00599385]
[1766603920248,0.05719122,87426.0,87424.0,0.00599385]
[1766603920447,0.05719187,87425.0,87424.0,0.00544485]
[1766603925273,0.05719122,87426.0,87424.0,0.00544485]
[1766603928290,0.05719187,87425.0,87424.0,0.00544485]
[1766603933659,0.01143863,87423.0,87407.0,0.00011]
[1766603933862,0.22876764,87425.0,87407.0,0.00011]
[1766603933863,0.19151733,87416.0,87408.0,0.01148]
[1766603934022,0.122331,87416.0,87408.0,0.01148]
[1766603934206,0.057196,87419.0,87408.0,0.01148]
[1766603934406,0.01143916,87419.0,87408.0,0.01148]
[1766603934607,0.06863783,87416.0,87408.0,0.01148]
[1766603934841,0.06863653,87417.0,87408.0,0.01148]
[1766603935246,0.06863548,87419.0,87408.0,0.01148]
[1766603935421,0.06863548,87419.0,87417.0,0.00055]
[1766603935628,0.01143863,87423.0,87417.0,0.00055]
[1766603935629,0.13431876,87422.0,87417.0,0.00055]
[1766603935852,0.01143889,87421.0,87408.0,0.01148]
[1766603936054,0.06863338,87421.0,87408.0,0.0229206]
[1766603936282,0.01143889,87421.0,87408.0,0.0229206]
[1766603936625,0.40478182,87420.0,87408.0,0.01148]
[1766603937030,0.06863499,87419.0,87408.0,0.01148]
[1766603938067,0.40478182,87420.0,87408.0,0.01148]
[1766603938068,0.46197824,87420.0,87408.0,0.01148]
[1766603938271,0.01143916,87419.0,87408.0,0.01148]
[1766603938748,0.3933428,87420.0,87414.0,0.0823973]
[1766603938872,0.12288,87422.0,87419.0,0.00055]
[1766603939079,0.12288,87422.0,87415.0,0.01148]
[1766603940077,0.19151261,87422.0,87415.0,0.01148]
[1766603940431,0.01143889,87421.0,87415.0,0.01148]
[1766603940633,0.19151261,87422.0,87415.0,0.01148]
[1766603940976,0.13431876,87422.0,87415.0,0.01148]
[1766603941345,0.01143889,87421.0,87415.0,0.01148]
[1766603941539,0.19151284,87422.0,87415.0,0.01148]
[1766603941746,0.0686336,87421.0,87415.0,0.01148]
[1766603942462,0.22876752,87425.0,87415.0,0.01148]
[1766603942463,0.01143785,87429.0,87421.0,0.00055]
[1766603942653,0.01143798,87428.0,87422.0,0.01148]
[1766603943076,0.01143798,87428.0,87415.0,0.06863799]
[1766603943077,0.01143902,87420.0,87415.0,0.0823973]
[1766603943281,0.00024688,87418.0,87416.0,0.01148]
[1766603944165,8.8e-07,87418.0,87416.0,0.01148]
[1766603947299,8.8e-07,87418.0,87417.0,0.01148]
[1766603949391,0.01143837,87425.0,87417.0,0.01148]
[1766603950187,0.0114385,87424.0,87417.0,0.01148]
[1766603950622,0.06863036,87425.0,87417.0,0.01148]
[1766603951222,0.06863113,87424.0,87417.0,0.01148]
[1766603951629,0.01143863,87423.0,87417.0,0.01148]
[1766603952390,0.06863109,87424.0,87417.0,0.01148]
[1766603953632,0.0114385,87424.0,87417.0,0.01148]
[1766603954069,0.01143863,87423.0,87417.0,0.01148]
[1766603954862,0.0114385,87424.0,87417.0,0.01148]
[1766603956319,0.06863105,87424.0,87417.0,0.01148]
[1766603956516,0.01143863,87423.0,87417.0,0.01148]
[1766603956761,0.06863105,87424.0,87417.0,0.01148]
[1766603956938,0.0114385,87424.0,87417.0,0.01148]
[1766603957137,0.01143863,87423.0,87417.0,0.01148]
[1766603957341,0.06863117,87424.0,87417.0,0.01148]
[1766603957595,0.0114385,87424.0,87417.0,0.01148]
[1766603957784,0.0686311,87424.0,87417.0,0.01148]
[1766603957989,0.01143863,87423.0,87417.0,0.01148]
[1766603958767,0.01143902,87420.0,87417.0,0.010685]
[1766603959113,0.01143876,87422.0,87417.0,0.010685]
[1766603959630,0.06863265,87422.0,87417.0,0.010685]
[1766603959850,0.01143889,87421.0,87417.0,0.010685]
[1766603960192,0.01143902,87420.0,87417.0,0.010685]
[1766603960399,0.06863352,87421.0,87417.0,0.010685]
[1766603960708,0.01143889,87421.0,87417.0,0.010685]
[1766603961150,0.01143902,87420.0,87417.0,0.010685]
[1766603961335,0.06863467,87420.0,87417.0,0.010685]
[1766603961522,0.06863422,87420.0,87417.0,0.010685]
[1766603962816,0.01143902,87420.0,87417.0,0.010685]
[1766603963016,0.01143863,87423.0,87420.0,0.000549]
[1766603963263,0.05719167,87426.0,87417.0,0.010685]
[1766603963434,0.01143824,87426.0,87417.0,0.010685]
[1766603963658,0.06862999,87426.0,87417.0,0.010685]
[1766603963864,0.13045837,87425.0,87417.0,0.010685]
[1766603964085,0.18765047,87425.0,87417.0,0.010685]
[1766603964284,0.0114385,87424.0,87417.0,0.010685]
[1766603964520,0.18765047,87425.0,87417.0,0.010685]
[1766603964697,0.11902,87425.0,87417.0,0.010685]
[1766603965198,0.13045837,87425.0,87417.0,0.010685]
[1766603965363,0.11902,87425.0,87417.0,0.010685]
[1766603966038,0.00010609,87434.0,87418.0,0.0823973]
[1766603966202,0.11902,87465.0,87434.0,0.00055]
[1766603966367,0.01143275,87468.0,87456.0,0.0823973]
[1766603966569,0.00011,87471.0,87458.0,0.01143405]
[1766603966768,0.00011,87471.0,87460.0,0.01143379]
[1766603966971,0.01137,87470.0,87464.0,0.01143327]
[1766603967195,0.01137,87470.0,87456.0,0.0823973]
[1766603967196,0.01148,87477.0,87474.0,0.01143196]
[1766603967395,0.01148,87477.0,87473.0,0.01143209]
[1766603967714,0.01148,87479.0,87470.0,0.0823973]
[1766603967915,0.01148,87479.0,87470.0,0.15099201]
[1766603968112,0.01148,87479.0,87472.0,0.01143222]
[1766603968447,0.01148,87479.0,87473.0,0.01143209]
[1766603969458,0.01148,87479.0,87472.0,0.06859322]
[1766603969791,0.01148,87479.0,87473.0,0.01143209]
[1766603970175,0.01148,87479.0,87471.0,0.06859412]
[1766603970376,0.01148,87479.0,87472.0,0.01143222]
[1766603970922,0.01148,87479.0,87471.0,0.06859412]
[1766603971127,0.01148,87479.0,87463.0,0.0114334]
[1766603971338,0.3933428,87473.0,87462.0,0.01143353]
[1766603971531,0.4048228,87472.0,87462.0,0.06860095]
[1766603971734,0.4048228,87472.0,87470.0,0.0823973]
[1766603971973,0.01148,87472.0,87470.0,0.0818473]
[1766603973047,0.01148,87471.0,87470.0,0.0818473]
[1766603974464,0.02291236,87471.0,87456.0,0.0823973]
[1766603974660,0.12468,87465.0,87456.0,0.0823973]
[1766603974930,0.01148,87464.0,87457.0,0.01143419]
[1766603975115,0.010931,87464.0,87457.0,0.01143419]
[1766603975305,0.3933428,87470.0,87464.0,0.000549]
[1766603975507,0.01148,87469.0,87464.0,0.000549]
[1766603975892,0.01148,87469.0,87461.0,0.01143366]
[1766603976292,0.01148,87469.0,87460.0,0.06860277]
[1766603976496,0.01148,87469.0,87459.0,0.06860346]
[1766603976835,0.01148,87469.0,87460.0,0.01143379]
[1766603977196,0.01148,87469.0,87457.0,0.01143419]
[1766603977397,0.01148,87469.0,87456.0,0.09383162]
[1766603977619,0.13485,87469.0,87456.0,0.09383162]
[1766603978013,0.13485,87469.0,87457.0,0.01143419]
[1766603978220,0.13485,87469.0,87456.0,0.09383162]
[1766603978851,0.13485,87469.0,87456.0,0.15100308]
[1766603979024,0.13485,87469.0,87456.0,0.09383162]
[1766603979223,0.14628262,87469.0,87456.0,0.09383162]
[1766603980101,0.13485,87469.0,87456.0,0.09383162]
[1766603980313,0.04576,87474.0,87469.0,0.000549]
[1766603980522,0.12337,87485.0,87472.0,0.06859328]
[1766603980728,0.12337,87485.0,87471.0,0.09382966]
[1766603980939,0.01148,87482.0,87471.0,0.09382966]
[1766603981764,0.19195327,87485.0,87471.0,0.0823973]
[1766603981765,0.12337,87485.0,87471.0,0.0823973]
[1766603981975,0.06858277,87486.0,87471.0,0.0823973]
[1766603981976,0.01148,87481.0,87472.0,0.01143222]
[1766603982159,0.068581,87489.0,87474.0,0.01143196]
[1766603982407,0.01148,87480.0,87473.0,0.05716049]
[1766603982570,0.01148,87480.0,87472.0,0.06859324]
[1766603982774,0.01148,87480.0,87472.0,0.01143222]
[1766603983349,0.01148,87480.0,87471.0,0.15099096]
[1766603983561,0.01148,87480.0,87472.0,0.01143222]
[1766603983931,0.01148,87480.0,87471.0,0.15099096]
[1766603984112,0.01148,87480.0,87471.0,0.09382966]
[1766603984312,0.01148,87480.0,87471.0,0.09309609]
[1766603984521,0.01148,87480.0,87472.0,0.01143222]
[1766603985338,0.01142948,87493.0,87475.0,0.01143183]
[1766603985549,0.01142896,87497.0,87471.0,0.08166373]
[1766603985550,0.01148,87492.0,87478.0,0.01143144]
[1766603985710,0.05714873,87491.0,87477.0,0.01143157]
[1766603986046,0.01143,87489.0,87475.0,0.06858985]
[1766603986392,0.00055,87475.0,87471.0,0.08166373]
[1766603986597,0.01148,87478.0,87471.0,0.08166373]
[1766603987835,0.13485,87478.0,87471.0,0.08166373]
[1766603994020,0.01143262,87469.0,87453.0,0.01143471]
[1766603994217,0.01148,87468.0,87465.0,0.0823973]
[1766604000041,0.01148,87467.0,87465.0,0.0823973]
[1766604000235,0.0114317,87476.0,87467.0,0.00055]
[1766604000552,0.06863183,87475.0,87465.0,0.0823973]
[1766604000799,0.0572,87474.0,87465.0,0.0823973]
[1766604000975,0.010931,87473.0,87468.0,0.01143275]
[1766604001195,0.43861918,87480.0,87473.0,0.00055]
[1766604001425,0.01143131,87479.0,87473.0,0.00055]
[1766604001649,0.01143131,87479.0,87466.0,0.01143301]
[1766604001867,0.01143131,87479.0,87465.0,0.13956245]
[1766604001868,0.02291144,87478.0,87465.0,0.09383044]
[1766604002348,0.01148,87478.0,87466.0,0.01143301]
[1766604002556,0.01148,87478.0,87467.0,0.01143288]
[1766604002788,0.01148,87478.0,87466.0,0.01143301]
[1766604003052,0.01148,87478.0,87467.0,0.01143288]
[1766604003253,0.01148,87477.0,87467.0,0.01143288]
[1766604003455,0.01148,87477.0,87468.0,0.06859651]
[1766604003874,0.01148,87477.0,87466.0,0.06859768]
[1766604003875,0.01143013,87488.0,87470.0,0.01143249]
[1766604004155,0.01148,87487.0,87479.0,0.0823973]
[1766604004358,0.01143221,87488.0,87479.0,0.0823973]
[1766604004578,0.01148,87486.0,87479.0,0.0823973]
[1766604005401,0.0229104,87486.0,87479.0,0.0823973]
[1766604005982,0.01148,87486.0,87479.0,0.0823973]
[1766604006655,2.08e-06,87488.0,87479.0,0.0823973]
[1766604007062,0.01148,87487.0,87479.0,0.0823973]
[1766604010230,0.01148,87486.0,87479.0,0.0823973]
[1766604010545,0.01148,87486.0,87479.0,0.09382861]
[1766604010788,0.01148,87486.0,87479.0,0.0823973]
[1766604011108,0.01148,87486.0,87479.0,0.08199669]
[1766604011312,0.000549,87479.0,87464.0,0.02291327]
[1766604011516,0.01148,87478.0,87469.0,0.01143262]
[1766604011801,0.01148,87478.0,87469.0,0.06859555]
[1766604011948,0.01148,87478.0,87469.0,0.01143262]
[1766604012116,0.01148,87478.0,87468.0,0.06859524]
[1766604013534,0.01148,87478.0,87469.0,0.06859564]
[1766604013852,0.01093,87477.0,87469.0,0.06859561]
[1766604014053,0.01093,87477.0,87470.0,0.01143249]
[1766604014292,0.01093,87477.0,87471.0,0.01143236]
[1766604014464,0.01093,87477.0,87470.0,0.01143249]
[1766604014992,0.01093,87477.0,87470.0,0.06859469]
[1766604015150,0.01093,87477.0,87469.0,0.06859561]
[1766604015339,0.01093,87477.0,87468.0,0.06859638]
[1766604016089,0.01093,87477.0,87470.0,0.06859473]
[1766604016257,0.01093,87477.0,87470.0,0.01143249]
[1766604016455,0.01093,87477.0,87469.0,0.01143262]
[1766604016887,0.01093,87477.0,87470.0,0.01143249]
[1766604017047,0.01148,87476.0,87470.0,0.01143249]
[1766604017249,0.01148,87475.0,87470.0,0.01143249]
[1766604018275,0.01148,87475.0,87469.0,0.06859561]
[1766604018501,0.01148,87475.0,87469.0,0.01143262]
[1766604018702,0.01148,87475.0,87469.0,0.06859571]
[1766604019183,0.01148,87475.0,87470.0,0.01143249]
[1766604019428,0.01148,87475.0,87469.0,0.06859571]
[1766604019634,0.01148,87475.0,87470.0,0.01143249]
[1766604019837,0.01148,87475.0,87469.0,0.01143262]
[1766604020057,0.01148,87475.0,87469.0,0.06859554]
[1766604020489,0.01148,87475.0,87470.0,0.01143249]
[1766604023134,0.00019002,87475.0,87474.0,0.05715984]
[1766604023369,0.00019002,87475.0,87473.0,0.05716001]
[1766604023578,0.00019002,87475.0,87474.0,0.05715984]
[1766604027673,0.00019002,87475.0,87472.0,0.01143222]
[1766604027674,0.01148,87481.0,87479.0,0.06858785]
[1766604027875,2.08e-06,87488.0,87484.0,0.01143066]
[1766604028098,0.01148,87487.0,87483.0,0.06858468]
[1766604028274,0.01148,87487.0,87482.0,0.06858428]
[1766604028481,0.01148,87487.0,87482.0,0.01143092]
[1766604029823,0.01148,87487.0,87481.0,0.06858514]
[1766604030000,0.01148,87487.0,87483.0,0.01143079]
[1766604030186,0.01148,87487.0,87482.0,0.01143092]
[1766604030387,0.01148,87486.0,87483.0,0.01143079]
[1766604030588,2.08e-06,87488.0,87483.0,0.01143079]
[1766604030821,0.01148,87487.0,87481.0,0.06858514]
[1766604031032,0.01148,87487.0,87482.0,0.01143092]
[1766604031226,0.01148,87487.0,87481.0,0.06858514]
[1766604031389,0.01148,87487.0,87482.0,0.01143092]
[1766604031591,0.01148,87487.0,87481.0,0.06858514]
[1766604031792,0.01148,87487.0,87480.0,0.15098427]
[1766604032610,0.01148,87487.0,87481.0,0.01143105]
[1766604034096,0.01148,87487.0,87480.0,0.15098427]
[1766604035338,0.01148,87487.0,87481.0,0.01143105]
[1766604035520,0.01148,87487.0,87482.0,0.01143092]
[1766604035826,0.01148,87487.0,87481.0,0.01143105]
[1766604036446,0.01148,87487.0,87480.0,0.15098427]
[1766604036658,0.01148,87487.0,87481.0,0.01143105]
[1766604037297,0.01148,87487.0,87480.0,0.15098427]
[1766604038272,2.08e-06,87488.0,87487.0,0.000549]
[1766604038645,2.08e-06,87488.0,87483.0,0.01143079]
[1766604038841,2.08e-06,87488.0,87480.0,0.09382848]
[1766604039110,2.08e-06,87488.0,87480.0,0.0823973]
[1766604039263,2.08e-06,87488.0,87480.0,0.09382848]
[1766604039431,2.08e-06,87488.0,87480.0,0.0823973]
[1766604039647,2.08e-06,87488.0,87480.0,0.09382848]
[1766604039849,2.08e-06,87488.0,87480.0,0.0823973]
[1766604041064,2.08e-06,87488.0,87480.0,0.09382848]
[1766604041466,2.08e-06,87488.0,87481.0,0.01143105]
[1766604043251,2.08e-06,87488.0,87482.0,0.01143092]
[1766604043454,2.08e-06,87488.0,87481.0,0.06858621]
[1766604044011,2.08e-06,87488.0,87480.0,0.15098424]
[1766604044185,2.08e-06,87488.0,87481.0,0.01143105]
[1766604045041,2.08e-06,87488.0,87482.0,0.01143092]
[1766604045955,2.08e-06,87488.0,87481.0,0.06858618]
[1766604046160,2.08e-06,87488.0,87482.0,0.01143092]
[1766604047068,2.08e-06,87488.0,87481.0,0.06858618]
[1766604048010,2.08e-06,87488.0,87482.0,0.01143092]
[1766604049761,2.08e-06,87488.0,87481.0,0.01143105]
[1766604050183,2.08e-06,87488.0,87480.0,0.09382848]
[1766604050385,2.08e-06,87488.0,87480.0,0.0823973]
[1766604050789,0.05715145,87487.0,87480.0,0.0823973]
[1766604050996,0.01198118,87480.0,87466.0,0.06859765]
[1766604051198,0.01144,87482.0,87466.0,0.01143301]
[1766604051366,0.23246105,87481.0,87467.0,0.01143288]
[1766604051587,0.01143118,87480.0,87466.0,0.05716489]
[1766604052031,0.01143118,87480.0,87467.0,0.05716434]
[1766604052275,0.39271101,87480.0,87469.0,0.05716308]
[1766604052460,0.39271101,87480.0,87469.0,0.01143262]
[1766604052624,0.01143131,87479.0,87465.0,0.16243614]
[1766604052803,0.67088866,87480.0,87466.0,0.01143301]
[1766604053005,0.67088866,87480.0,87467.0,0.01143288]
[1766604053215,0.01143131,87479.0,87466.0,0.01143301]
[1766604053563,0.67088866,87480.0,87467.0,0.01143288]
[1766604053731,0.01143131,87479.0,87466.0,0.01143301]
[1766604053929,0.01143131,87479.0,87466.0,0.06859787]
[1766604054133,0.01143144,87478.0,87465.0,0.10527044]
[1766604054338,0.27817972,87477.0,87465.0,0.0938373]
[1766604054514,0.0114317,87476.0,87465.0,0.0823973]
[1766604054745,0.01144,87475.0,87465.0,0.0823973]
[1766604054948,0.01144,87475.0,87465.0,0.09383044]
[1766604055557,0.20959,87477.0,87465.0,0.0823973]
[1766604055735,0.01143183,87475.0,87465.0,0.0823973]
[1766604055954,0.06859101,87475.0,87466.0,0.01144]
[1766604056196,0.01143209,87473.0,87466.0,0.01144]
[1766604056406,0.01143196,87474.0,87466.0,0.01144]
[1766604056834,0.01143209,87473.0,87466.0,0.01144]
[1766604057046,0.06859308,87473.0,87465.0,0.0823973]
[1766604057262,0.01143183,87475.0,87465.0,0.0823973]
[1766604057688,0.27818078,87476.0,87465.0,0.0823973]
[1766604059079,0.2210217,87476.0,87465.0,0.0823973]
[1766604059708,0.27818029,87476.0,87465.0,0.0823973]
[1766604060395,0.01143183,87475.0,87465.0,0.0823973]
[1766604061282,0.20959,87476.0,87465.0,0.0823973]
[1766604061706,0.20959,87476.0,87464.0,0.01144]
[1766604061707,0.01143392,87459.0,87452.0,0.0823973]
[1766604061925,0.23763,87460.0,87446.0,0.02287562]
[1766604062083,0.23763,87460.0,87447.0,0.01143549]
[1766604062463,0.24906379,87460.0,87447.0,0.01143549]
[1766604062709,0.01144,87461.0,87449.0,0.01143523]
[1766604062855,0.0114334,87463.0,87450.0,0.05717534]
[1766604062856,0.01148,87463.0,87450.0,0.05717534]
[1766604063050,0.01148,87463.0,87451.0,0.15100709]
[1766604063251,0.39271101,87461.0,87451.0,0.09383227]
[1766604063455,0.01148,87463.0,87451.0,0.09383227]
[1766604063697,0.01148,87463.0,87452.0,0.01143484]
[1766604063912,0.01148,87463.0,87453.0,0.01143471]
[1766604064091,0.01148,87463.0,87455.0,0.05717165]
[1766604064298,0.01148,87463.0,87453.0,0.01143471]
[1766604064299,0.01148,87463.0,87454.0,0.06860749]
[1766604065089,0.01148,87463.0,87455.0,0.01143445]
[1766604065299,0.01148,87463.0,87454.0,0.06860749]
[1766604065491,0.01148,87463.0,87454.0,0.01143458]
[1766604065693,0.01148,87463.0,87458.0,0.01143405]
[1766604065898,0.06859399,87472.0,87459.0,0.01143392]
[1766604066276,0.01148,87472.0,87460.0,0.01143379]
[1766604066450,0.01148,87472.0,87461.0,0.01143366]
[1766604066586,0.01148,87472.0,87460.0,0.06860265]
[1766604066788,0.01148,87472.0,87461.0,0.01143366]
[1766604066996,0.22861396,87484.0,87460.0,0.06860265]
[1766604066997,0.01143079,87483.0,87468.0,0.05716319]
[1766604067389,0.01143079,87483.0,87469.0,0.01143262]
[1766604067390,0.01148,87482.0,87469.0,0.01143262]
[1766604067594,0.02291092,87482.0,87469.0,0.01143262]
[1766604067958,0.01143105,87481.0,87468.0,0.02291275]
[1766604068568,0.01143118,87480.0,87468.0,0.01148]
[1766604068973,0.01148,87482.0,87469.0,0.01143262]
[1766604069176,0.01148,87482.0,87471.0,0.01143236]
[1766604069521,0.01148,87482.0,87471.0,0.06859383]
[1766604069726,0.05715206,87486.0,87471.0,0.06859383]
[1766604069876,0.01148,87481.0,87471.0,0.06859383]
[1766604070843,0.001099,87471.0,87468.0,0.01148]
[1766604071046,0.001099,87471.0,87455.0,0.04575155]
[1766604071047,0.06859003,87477.0,87463.0,0.0114334]
[1766604071301,0.06859003,87477.0,87464.0,0.01148]
[1766604071302,0.01143183,87475.0,87464.0,0.01148]
[1766604071501,0.05715855,87476.0,87464.0,0.01148]
[1766604071702,0.06859118,87475.0,87464.0,0.01148]
[1766604072030,0.0114317,87476.0,87464.0,0.01148]
[1766604072754,0.0114317,87476.0,87465.0,0.0823973]
[1766604073476,0.24906183,87475.0,87464.0,0.01148]
[1766604073700,0.24906183,87475.0,87465.0,0.0823973]
[1766604073871,0.01143196,87474.0,87465.0,0.0823973]
[1766604074460,0.06859219,87474.0,87465.0,0.0823973]
[1766604074721,0.01143196,87474.0,87465.0,0.0823973]
[1766604075515,0.23763,87475.0,87465.0,0.0823973]
[1766604075819,0.01143222,87472.0,87464.0,0.01148]
[1766604075978,0.01143209,87473.0,87465.0,0.0823973]
[1766604076182,0.06859432,87471.0,87465.0,0.0823973]
[1766604076379,0.01143222,87472.0,87465.0,0.0823973]
[1766604077548,0.01143249,87470.0,87465.0,0.0812983]
[1766604078789,0.01143301,87466.0,87463.0,0.0001063]
[1766604079174,0.24906288,87467.0,87463.0,0.0001063]
[1766604079874,0.23763,87465.0,87463.0,0.0001063]
[1766604082143,0.01143288,87467.0,87463.0,0.0001063]
[1766604082353,0.06859729,87467.0,87463.0,0.0001063]
[1766604082552,0.01143301,87466.0,87463.0,0.0001063]
[1766604082761,0.06859729,87467.0,87463.0,0.0001063]
[1766604083164,0.23763,87471.0,87463.0,0.0001063]
[1766604083497,0.01143275,87468.0,87463.0,0.0001063]
[1766604084057,0.01143262,87469.0,87463.0,0.0001063]
[1766604084275,0.01143275,87468.0,87463.0,0.0001063]
[1766604084603,0.01143288,87467.0,87463.0,0.0001063]
[1766604085167,0.06859653,87468.0,87463.0,0.0001063]
[1766604086710,0.06859748,87467.0,87463.0,0.0001063]
[1766604087044,0.05716637,87464.0,87463.0,0.0001063]
[1766604087387,0.05716637,87464.0,87452.0,0.01148]
[1766604087388,0.05716806,87462.0,87452.0,0.01148]
[1766604087586,0.01153973,87462.0,87452.0,0.01148]
[1766604088654,0.0001062,87462.0,87452.0,0.01148]
[1766604088776,0.01143366,87461.0,87452.0,0.01148]
[1766604088974,0.01143419,87457.0,87448.0,0.0823973]
[1766604089192,0.01143471,87453.0,87443.0,0.01148]
[1766604089392,0.40414572,87453.0,87443.0,0.01148]
[1766604089598,0.01143484,87452.0,87443.0,0.01148]
[1766604089888,0.06860932,87452.0,87443.0,0.01148]
[1766604090067,0.01143484,87452.0,87443.0,0.01148]
[1766604090296,0.76209988,87453.0,87443.0,0.01148]
[1766604090462,0.70492572,87453.0,87443.0,0.01148]
[1766604090665,0.31221471,87453.0,87443.0,0.01148]
[1766604091060,0.0114351,87450.0,87439.0,0.01148]
[1766604091268,0.39271101,87450.0,87439.0,0.01148]
[1766604091949,0.39271101,87450.0,87430.0,0.01143772]
[1766604091950,0.01143589,87444.0,87430.0,0.01143772]
[1766604092146,0.01143549,87447.0,87444.0,0.000549]
[1766604092351,0.30078,87453.0,87434.0,0.01148]
[1766604092352,0.35795478,87452.0,87438.0,0.01143667]
[1766604092579,0.39271101,87450.0,87438.0,0.01143667]